bitfinex/quotes_SOLUSD_20251130
["timestamp","ask_amount","ask_price","bid_price","bid_amount"]
[1764507299606,0.71,137.71,137.68,0.68]
[1764507300408,0.71,137.71,137.68,7.94310819]
[1764507303009,0.71,137.71,137.68,0.68]
[1764507303206,0.71,137.71,137.67,7.94374664]
[1764507303407,0.71,137.71,137.67,7.26374664]
[1764507303713,0.71,137.71,137.68,0.68]
[1764507304314,0.71,137.71,137.68,7.94279308]
[1764507309014,0.71,137.71,137.68,26.10084072]
[1764507309202,0.71,137.71,137.69,0.68]
[1764507309615,0.71,137.72,137.69,0.68]
[1764507310307,0.71,137.72,137.68,25.42084072]
[1764507310628,0.71,137.72,137.68,26.10084072]
[1764507311299,0.71,137.72,137.69,0.68]
[1764507311500,0.71,137.72,137.68,18.83804764]
[1764507312123,0.71,137.72,137.68,18.15804764]
[1764507312320,0.71,137.72,137.69,0.68]
[1764507313341,7.971133,137.72,137.66,16.988864]
[1764507313500,7.971133,137.72,137.67,0.68]
[1764507313700,0.71,137.71,137.67,0.68]
[1764507314324,7.97167797,137.71,137.67,7.94341991]
[1764507314522,7.97167797,137.71,137.67,0.68]
[1764507314828,0.71,137.7,137.66,24.25309815]
[1764507315021,0.71,137.7,137.67,0.68]
[1764507315227,3.2,137.69,137.65,7.26435132]
[1764507315529,3.2,137.69,137.6,120.74644042]
[1764507315530,0.71,137.68,137.62,7.94638569]
[1764507315909,7.97167797,137.68,137.63,0.68]
[1764507316409,7.97374664,137.67,137.63,7.94564315]
[1764507316906,0.71,137.66,137.63,0.68]
[1764507317104,0.71,137.66,137.63,7.94584225]
[1764507318010,0.71,137.66,137.63,0.68]
[1764507318209,0.71,137.66,137.62,7.94617702]
[1764507318620,0.71,137.66,137.63,0.68]
[1764507319022,0.71,137.66,137.62,7.94617702]
[1764507319228,3.91,137.66,137.62,7.94617702]
[1764507319525,0.71,137.65,137.62,7.94617702]
[1764507319919,0.71,137.65,137.61,7.26674754]
[1764507320099,0.71,137.65,137.61,7.94674754]
[1764507320304,18.16922684,137.64,137.61,7.94674754]
[1764507320821,18.87922684,137.64,137.61,7.94674754]
[1764507321029,0.71,137.63,137.61,7.94674754]
[1764507321410,18.87922684,137.64,137.61,7.94674754]
[1764507321617,0.71,137.64,137.61,7.94674754]
[1764507324836,7.97569056,137.64,137.6,0.68]
[1764507325038,3.2,137.63,137.6,0.68]
[1764507325348,3.91,137.63,137.6,0.7]
[1764507325839,3.91,137.63,137.6,7.96743474]
[1764507326739,0.72,137.62,137.58,7.96849832]
[1764507326927,22.55962435,137.62,137.58,7.96849832]
[1764507327135,0.72,137.61,137.58,7.96849832]
[1764507328042,0.72,137.61,137.58,7.26849832]
[1764507328247,22.55962435,137.62,137.59,7.92794035]
[1764507329546,0.72,137.62,137.59,7.92794035]
[1764507331551,7.98645435,137.62,137.59,0.66]
[1764507331852,11.18645435,137.62,137.59,0.66]
[1764507334148,10.46645435,137.62,137.59,0.66]
[1764507334355,0.72,137.61,137.59,0.66]
[1764507338255,25.03962435,137.62,137.59,7.92781464]
[1764507338459,3.2,137.62,137.59,7.92781464]
[1764507338660,3.2,137.62,137.6,0.66]
[1764507339356,3.92,137.62,137.6,0.66]
[1764507340865,3.2,137.62,137.6,0.66]
[1764507341334,21.83803457,137.64,137.61,7.26691374]
[1764507341534,11.18493075,137.65,137.61,7.26691374]
[1764507341762,11.18493075,137.65,137.62,0.66]
[1764507342457,29.35424422,137.65,137.62,0.66]
[1764507354974,3.92,137.65,137.62,0.66]
[1764507355347,11.18495317,137.65,137.62,0.66]
[1764507356452,10.46495317,137.65,137.62,0.66]
[1764507356773,11.12495317,137.65,137.62,0.66]
[1764507356975,21.8348557,137.66,137.62,7.92624382]
[1764507357168,0.66,137.67,137.63,16.308864]
[1764507357469,0.66,137.67,137.63,16.978864]
[1764507357658,0.66,137.67,137.64,0.67]
[1764507359473,0.66,137.67,137.65,7.26480203]
[1764507359974,3.86,137.68,137.65,7.93480203]
[1764507360154,3.86,137.68,137.65,7.26480203]
[1764507360365,3.86,137.68,137.66,0.67]
[1764507360668,3.2,137.68,137.66,0.67]
[1764507360870,7.92211312,137.71,137.66,0.67]
[1764507361071,3.86,137.7,137.66,0.67]
[1764507361776,3.86,137.7,137.67,7.26374664]
[1764507362278,3.86,137.7,137.67,7.93374664]
[1764507362772,0.66,137.69,137.67,7.26374664]
[1764507362976,0.66,137.69,137.65,26.09680711]
[1764507363160,0.66,137.69,137.66,0.67]
[1764507364361,0.66,137.69,137.67,7.26374664]
[1764507366977,3.2,137.7,137.66,7.26427429]
[1764507367177,3.2,137.7,137.67,0.67]
[1764507368982,3.2,137.7,137.67,7.93352636]
[1764507369685,3.86,137.7,137.67,7.93352636]
[1764507371877,3.86,137.7,137.67,0.67]
[1764507372365,25.68691258,137.7,137.67,0.67]
[1764507372556,0.66,137.69,137.66,7.93406397]
[1764507373872,7.92275209,137.69,137.62,84.16573061]
[1764507374079,7.92275209,137.69,137.63,16.978864]
[1764507374259,0.66,137.68,137.63,16.978864]
[1764507374459,0.66,137.68,137.64,0.67]
[1764507375483,7.26275209,137.69,137.65,7.26480203]
[1764507375655,7.92275209,137.69,137.65,7.26480203]
[1764507375861,11.12237107,137.7,137.66,0.67]
[1764507376263,3.2,137.69,137.66,0.67]
[1764507377083,3.2,137.71,137.66,0.67]
[1764507377480,3.2,137.71,137.67,7.26374664]
[1764507377884,0.1,137.73,137.68,0.67]
[1764507378088,3.3,137.73,137.68,0.67]
[1764507379090,11.22060416,137.73,137.68,0.67]
[1764507379258,0.66,137.72,137.68,0.67]
[1764507380095,7.92153226,137.72,137.68,0.67]
[1764507381269,7.92153226,137.72,137.68,7.93315729]
[1764507383892,7.92153226,137.72,137.69,0.67]
[1764507390194,3.2,137.72,137.69,7.93235809]
[1764507390399,3.2,137.72,137.7,0.72]
[1764507391399,3.2,137.72,137.7,7.98179296]
[1764507391784,3.2,137.72,137.71,0.72]
[1764507392282,0.1,137.73,137.71,0.72]
[1764507393486,0.1,137.73,137.72,7.26110949]
[1764507393895,0.1,137.73,137.72,7.98110949]
[1764507394198,0.1,137.73,137.72,0.72]
[1764507394501,0.1,137.73,137.69,0.72]
[1764507394502,0.77,137.73,137.69,0.72]
[1764507395999,8.03093172,137.73,137.69,0.72]
[1764507397311,8.03093172,137.73,137.69,7.98255318]
[1764507397601,0.67,137.72,137.68,24.29188342]
[1764507397801,3.2,137.71,137.68,24.29188342]
[1764507398699,3.2,137.71,137.68,16.308864]
[1764507398885,10.46174362,137.71,137.67,7.2636856]
[1764507399086,10.46174362,137.71,137.69,0.72]
[1764507399490,10.46174362,137.71,137.68,0.72]
[1764507399878,10.46174362,137.71,137.67,7.9836856]
[1764507400181,0.67,137.7,137.67,7.9836856]
[1764507400793,10.46174362,137.71,137.68,0.72]
[1764507400998,3.2,137.71,137.68,0.72]
[1764507401203,3.87,137.71,137.68,0.72]
[1764507401376,3.2,137.71,137.68,0.72]
[1764507401775,3.87,137.71,137.68,0.72]
[1764507402003,3.87,137.71,137.68,7.98318802]
[1764507402394,0.67,137.7,137.67,0.72]
[1764507402596,11.13196113,137.71,137.67,0.72]
[1764507403903,10.46196113,137.71,137.67,0.72]
[1764507404103,10.46196113,137.71,137.67,7.98323333]
[1764507404310,10.46196113,137.71,137.68,0.72]
[1764507407714,11.13196113,137.71,137.67,7.26323333]
[1764507407914,11.13196113,137.71,137.67,7.98323333]
[1764507408214,11.13196113,137.71,137.68,0.72]
[1764507408908,10.46196113,137.71,137.68,0.72]
[1764507409805,11.13196113,137.71,137.68,0.72]
[1764507412110,10.46196113,137.71,137.67,7.98323333]
[1764507412611,11.13196113,137.71,137.67,7.98323333]
[1764507412799,11.13196113,137.71,137.68,0.72]
[1764507413411,10.63196113,137.71,137.68,0.72]
[1764507414800,0.67,137.7,137.66,7.98406876]
[1764507415000,0.67,137.7,137.67,0.72]
[1764507416011,10.66196113,137.71,137.67,7.98368235]
[1764507416419,10.66196113,137.71,137.68,0.69]
[1764507421117,9.96196113,137.71,137.68,0.69]
[1764507421538,9.96196113,137.71,137.68,7.95305988]
[1764507421820,2.7,137.71,137.68,7.95305988]
[1764507422030,2.7,137.71,137.69,0.69]
[1764507429222,9.96190171,137.71,137.66,7.26427429]
[1764507429427,0.7,137.7,137.65,79.798864]
[1764507429610,0.7,137.7,137.66,0.69]
[1764507431121,0.7,137.7,137.65,16.308864]
[1764507431426,0.7,137.7,137.66,0.69]
[1764507431627,7.26269155,137.69,137.66,0.69]
[1764507431828,3.2,137.68,137.66,0.69]
[1764507434218,3.2,137.68,137.66,7.95424069]
[1764507435024,3.2,137.68,137.66,7.26424069]
[1764507435216,3.2,137.68,137.67,0.69]
[1764507435610,7.96120277,137.72,137.68,7.26321905]
[1764507435820,10.46234622,137.71,137.68,7.26321905]
[1764507436015,10.46234622,137.71,137.69,0.69]
[1764507441030,10.46234622,137.71,137.69,7.95257854]
[1764507441213,3.2,137.71,137.69,7.95257854]
[1764507443037,3.9,137.71,137.67,0.69]
[1764507444035,11.16165169,137.71,137.67,0.69]
[1764507444739,32.98697634,137.71,137.67,0.69]
[1764507444928,32.98697634,137.71,137.67,7.95359026]
[1764507445126,32.98697634,137.71,137.68,0.69]
[1764507448635,0.68,137.7,137.67,7.95351638]
[1764507449040,32.28856427,137.71,137.67,7.26351638]
[1764507449245,11.14165169,137.71,137.68,0.69]
[1764507449429,32.96856427,137.71,137.68,0.69]
[1764507449631,0.68,137.7,137.66,7.2640839]
[1764507449967,0.68,137.7,137.66,7.9540839]
[1764507450255,22.50850074,137.7,137.67,0.69]
[1764507450546,22.50850074,137.7,137.66,7.9540839]
[1764507450749,0.68,137.69,137.66,7.9540839]
[1764507451921,29.09087842,137.7,137.67,0.69]
[1764507452130,29.77087842,137.7,137.67,0.69]
[1764507453065,29.09087842,137.7,137.66,7.2640839]
[1764507453354,29.09087842,137.7,137.67,0.69]
[1764507453553,29.77087842,137.7,137.67,0.69]
[1764507454422,29.77087842,137.7,137.67,7.95373424]
[1764507455842,29.09087842,137.7,137.68,0.69]
[1764507456623,29.77087842,137.7,137.67,0.69]
[1764507458534,22.50850074,137.7,137.67,7.95367764]
[1764507461152,7.94250917,137.7,137.67,7.95368681]
[1764507461346,21.82850074,137.69,137.67,7.95368681]
[1764507462943,25.02850074,137.69,137.67,7.95368681]
[1764507464861,25.02850074,137.69,137.67,0.69]
[1764507465957,3.2,137.69,137.67,0.69]
[1764507471656,25.02850074,137.69,137.67,0.69]
[1764507473153,3.2,137.69,137.67,0.69]
[1764507482865,21.82850074,137.7,137.67,7.95369704]
[1764507483054,3.2,137.71,137.67,7.95369704]
[1764507483251,3.2,137.71,137.68,17.008864]
[1764507483765,3.2,137.71,137.69,0.7]
[1764507484468,3.2,137.71,137.69,7.96258505]
[1764507484844,3.2,137.71,137.7,0.7]
[1764507487071,1.38459081,137.71,137.7,0.7]
[1764507491166,0.1,137.73,137.7,7.96184801]
[1764507491402,0.1,137.73,137.72,16.308864]
[1764507491693,0.1,137.73,137.72,24.26997349]
[1764507492385,0.1,137.73,137.72,0.7]
[1764507492887,0.1,137.73,137.72,24.26997349]
[1764507494106,0.1,137.73,137.72,17.008864]
[1764507494279,0.1,137.73,137.72,0.7]
[1764507494710,0.1,137.73,137.72,7.96110949]
[1764507515014,0.1,137.73,137.7,0.71]
[1764507515216,0.1,137.73,137.69,0.71]
[1764507515217,0.78,137.73,137.69,0.71]
[1764507515518,0.78,137.73,137.67,62.8]
[1764507515519,0.78,137.73,137.68,17.018864]
[1764507515924,0.78,137.73,137.69,0.71]
[1764507517032,8.04058374,137.73,137.7,0.71]
[1764507517211,0.68,137.72,137.68,23.57203712]
[1764507517410,8.04058374,137.73,137.7,0.71]
[1764507518625,7.36058374,137.73,137.7,0.71]
[1764507519128,8.04058374,137.73,137.7,0.71]
[1764507521429,0.68,137.72,137.69,7.26239094]
[1764507521610,0.68,137.72,137.69,7.97239094]
[1764507522529,8.04058374,137.73,137.7,0.71]
[1764507527928,7.36058374,137.73,137.7,0.71]
[1764507528122,0.1,137.73,137.7,7.97170132]
[1764507528529,0.1,137.73,137.71,0.71]
[1764507532036,0.1,137.73,137.71,7.97151301]
[1764507532435,0.1,137.73,137.72,0.71]
[1764507533135,0.1,137.73,137.72,7.97110949]
[1764507535536,0.1,137.73,137.71,62.8]
[1764507535740,0.1,137.73,137.71,0.72]
[1764507537750,0.1,137.73,137.71,7.98158527]
[1764507538629,0.1,137.73,137.72,0.72]
[1764507538827,0.1,137.73,137.71,7.26158527]
[1764507539044,0.1,137.73,137.71,7.98158527]
[1764507540142,0.1,137.73,137.72,7.98110949]
[1764507540543,0.1,137.73,137.72,7.26110949]
[1764507541238,0.1,137.73,137.72,7.98110949]
[1764507551774,0.78,137.73,137.69,0.72]
[1764507552265,0.1,137.73,137.7,0.72]
[1764507552568,0.78,137.73,137.7,0.72]
[1764507553788,0.78,137.73,137.7,7.98200296]
[1764507553985,8.04059229,137.73,137.68,0.72]
[1764507554363,0.68,137.72,137.67,24.29252924]
[1764507554562,0.68,137.72,137.67,17.028864]
[1764507554861,0.68,137.72,137.68,0.72]
[1764507555364,0.78,137.73,137.68,0.72]
[1764507555558,0.68,137.72,137.68,0.72]
[1764507555869,0.68,137.72,137.69,7.26269155]
[1764507556259,0.68,137.72,137.69,0.72]
[1764507557894,0.68,137.72,137.69,7.98235195]
[1764507558186,0.78,137.73,137.69,7.98235195]
[1764507558479,0.78,137.73,137.7,0.72]
[1764507558480,0.1,137.73,137.7,0.72]
[1764507559859,0.1,137.73,137.71,7.26163677]
[1764507560264,0.1,137.73,137.72,0.72]
[1764507564096,0.1,137.73,137.72,7.98110949]
[1764507572518,0.82,137.73,137.71,7.26154017]
[1764507572718,0.1,137.73,137.71,7.93154017]
[1764507577320,0.1,137.73,137.71,0.67]
[1764507577625,0.1,137.73,137.71,7.93157977]
[1764507578121,0.1,137.73,137.71,0.67]
[1764507578332,0.1,137.73,137.7,70.06205873]
[1764507578514,0.1,137.73,137.71,0.67]
[1764507580428,0.1,137.73,137.7,70.06205873]
[1764507580599,0.82,137.73,137.7,70.73205873]
[1764507581218,0.82,137.73,137.71,0.67]
[1764507581529,0.1,137.73,137.71,0.67]
[1764507584606,0.1,137.73,137.72,7.26110949]
[1764507585031,0.1,137.73,137.72,7.93110949]
[1764507589939,0.1,137.73,137.72,0.67]
[1764507591138,0.1,137.73,137.7,70.06193164]
[1764507591329,0.1,137.73,137.71,0.67]
[1764507592035,0.1,137.73,137.72,16.308864]
[1764507592334,0.1,137.73,137.72,0.67]
[1764507592519,0.82,137.73,137.7,7.93193164]
[1764507592723,0.1,137.73,137.71,0.67]
[1764507593120,0.1,137.73,137.71,7.93163111]
[1764507594641,0.1,137.73,137.72,0.67]
[1764507595422,0.1,137.73,137.72,7.93110949]
[1764507605433,0.1,137.73,137.72,24.23997349]
[1764507607252,0.1,137.74,137.72,24.23997349]
[1764507607449,0.81,137.74,137.72,7.26110949]
[1764507610844,8.07038898,137.74,137.7,16.308864]
[1764507611235,0.71,137.73,137.68,7.95305895]
[1764507611448,0.71,137.73,137.69,16.308864]
[1764507612232,0.71,137.73,137.7,24.26102812]
[1764507612564,0.71,137.73,137.7,23.57102812]
[1764507612953,0.1,137.74,137.71,0.69]
[1764507613181,0.71,137.73,137.7,23.57102812]
[1764507614686,0.71,137.73,137.7,42.41643843]
[1764507615394,0.1,137.74,137.71,0.69]
[1764507616402,0.1,137.74,137.72,7.26110949]
[1764507616909,0.1,137.74,137.72,7.95110949]
[1764507617287,0.1,137.74,137.72,7.26110949]
[1764507617583,0.81,137.74,137.71,7.26151109]
[1764507617789,0.81,137.74,137.71,7.95151109]
[1764507618269,0.81,137.74,137.71,7.26151109]
[1764507618690,0.81,137.74,137.7,23.57084661]
[1764507619077,0.81,137.74,137.7,24.26084661]
[1764507619370,0.1,137.74,137.71,0.69]
[1764507620602,0.1,137.74,137.72,7.26110949]
[1764507620980,0.1,137.74,137.72,7.95110949]
[1764507621178,0.1,137.74,137.72,7.26110949]
[1764507621382,0.1,137.74,137.73,0.69]
[1764507621684,0.1,137.74,137.72,7.95110949]
[1764507623614,0.1,137.74,137.71,25.41509225]
[1764507623816,0.1,137.74,137.73,0.69]
[1764507623990,0.1,137.74,137.72,0.69]
[1764507624907,0.1,137.74,137.73,7.26058229]
[1764507630205,0.1,137.74,137.72,7.95094785]
[1764507630415,0.81,137.74,137.68,0.66]
[1764507630928,15.01810612,137.73,137.68,0.66]
[1764507631393,0.71,137.72,137.68,7.92311503]
[1764507631810,0.71,137.72,137.69,0.66]
[1764507633689,7.97112399,137.72,137.69,0.66]
[1764507633896,7.97112399,137.72,137.68,7.92305881]
[1764507634107,0.71,137.71,137.67,7.92355592]
[1764507634620,0.71,137.71,137.68,0.66]
[1764507634987,18.21810612,137.73,137.68,0.66]
[1764507635186,0.1,137.74,137.68,3.86]
[1764507635613,16.408864,137.74,137.69,0.66]
[1764507635824,0.1,137.74,137.69,0.66]
[1764507636034,0.1,137.74,137.7,25.41757443]
[1764507636408,0.1,137.74,137.71,0.66]
[1764507638230,0.1,137.74,137.71,7.92124672]
[1764507638437,0.1,137.74,137.72,0.66]
[1764507639706,0.1,137.74,137.72,7.92102633]
[1764507645649,0.1,137.74,137.73,0.66]
[1764507645810,0.1,137.74,137.71,7.92163677]
[1764507646009,0.1,137.74,137.72,0.66]
[1764507647250,0.1,137.74,137.72,7.92081263]
[1764507648617,0.1,137.74,137.73,0.66]
[1764507649547,0.1,137.74,137.72,0.66]
[1764507650044,0.1,137.74,137.72,7.9208061]
[1764507650346,0.1,137.74,137.73,0.66]
[1764507651840,0.1,137.74,137.73,7.92058229]
[1764507658760,0.1,137.74,137.73,7.11248229]
[1764507660283,0.1,137.74,137.72,7.26110949]
[1764507660690,0.1,137.74,137.73,0.68]
[1764507662489,0.1,137.74,137.73,7.94058229]
[1764507663568,0.1,137.74,137.73,70.74058229]
[1764507671006,0.1,137.74,137.73,70.06058229]
[1764507672172,0.82,137.74,137.72,7.26076719]
[1764507672913,0.82,137.74,137.72,0.68]
[1764507673234,0.1,137.74,137.73,0.68]
[1764507674203,0.1,137.74,137.73,7.94058229]
[1764507677309,0.1,137.74,137.73,7.26058229]
[1764507680105,0.1,137.74,137.72,7.26110949]
[1764507680310,0.1,137.74,137.73,0.68]
[1764507680810,0.1,137.74,137.72,7.94110949]
[1764507680991,0.82,137.74,137.72,7.94110949]
[1764507681394,0.82,137.74,137.72,70.74110949]
[1764507682809,0.1,137.74,137.72,70.74110949]
[1764507684302,0.1,137.74,137.73,7.94058229]
[1764507691818,0.1,137.74,137.72,70.06080569]
[1764507692115,0.8,137.74,137.72,70.06080569]
[1764507692715,0.8,137.74,137.72,70.75080569]
[1764507694100,0.1,137.74,137.72,70.75080569]
[1764507695503,0.1,137.74,137.73,0.69]
[1764507697210,0.1,137.74,137.73,7.95058229]
[1764507697910,0.1,137.74,137.73,11.15058229]
[1764507699119,0.1,137.74,137.73,73.95058229]
[1764507702627,0.8,137.74,137.73,70.06058229]
[1764507704508,0.8,137.74,137.73,7.26058229]
[1764507704924,0.8,137.74,137.73,16.308864]
[1764507706313,0.1,137.74,137.73,16.998864]
[1764507707330,0.1,137.74,137.73,24.25944629]
[1764507707518,0.8,137.74,137.73,23.56944629]
[1764507707824,0.1,137.74,137.73,23.56944629]
[1764507708025,0.1,137.74,137.73,24.25944629]
[1764507711009,0.1,137.74,137.73,24.54376943]
[1764507713030,0.1,137.74,137.73,24.25944629]
[1764507717035,0.1,137.74,137.73,87.05944629]
[1764507728845,0.1,137.74,137.73,99.06164208]
[1764507729048,0.1,137.75,137.73,99.06164208]
[1764507729238,0.1,137.75,137.74,4.19432314]
[1764507729448,0.1,137.75,137.74,66.28432314]
[1764507729957,0.1,137.75,137.74,66.99432314]
[1764507730453,0.1,137.75,137.74,65.99432314]
[1764507730640,0.1,137.75,137.74,64.99432314]
[1764507730947,0.1,137.75,137.74,72.25437831]
[1764507732552,0.1,137.76,137.74,72.25437831]
[1764507732850,0.1,137.76,137.75,0.71]
[1764507733154,0.1,137.76,137.75,24.27839213]
[1764507734756,1e-08,137.76,137.75,24.27839213]
[1764507737659,1e-08,137.76,137.75,87.07839213]
[1764507739259,1e-08,137.76,137.75,86.36839213]
[1764507741250,0.70000001,137.76,137.75,86.36839213]
[1764507741657,1e-08,137.76,137.75,86.36839213]
[1764507742154,0.70000001,137.76,137.75,86.36839213]
[1764507742355,1e-08,137.76,137.75,86.36839213]
[1764507743968,0.70000001,137.76,137.75,86.36839213]
[1764507744344,1e-08,137.76,137.75,86.36839213]
[1764507745169,0.70000001,137.76,137.75,86.36839213]
[1764507746568,0.70000001,137.76,137.75,23.56839213]
[1764507747041,8.05691051,137.76,137.75,23.56839213]
[1764507747461,0.70000001,137.76,137.75,23.56839213]
[1764507749171,8.75691052,137.76,137.75,23.56839213]
[1764507749467,0.70000001,137.76,137.75,23.56839213]
[1764507751864,9.45691053,137.76,137.75,16.308864]
[1764507752176,9.45691053,137.76,137.74,7.25992104]
[1764507752345,0.72,137.75,137.74,7.25992104]
[1764507752745,9.47691053,137.75,137.74,7.25992104]
[1764507757172,1e-08,137.76,137.74,7.93992104]
[1764507757773,0.72000001,137.76,137.74,7.93992104]
[1764507757975,10.19691054,137.76,137.74,7.93992104]
[1764507758373,10.19691054,137.76,137.74,7.25992104]
[1764507760374,0.72,137.75,137.74,7.25992104]
[1764507760557,0.72000001,137.76,137.74,7.25992104]
[1764507760764,1e-08,137.76,137.75,0.68]
[1764507761176,1e-08,137.76,137.74,7.93992104]
[1764507761474,1e-08,137.76,137.74,70.73992104]
[1764507763577,1e-08,137.76,137.74,70.05992104]
[1764507763774,1e-08,137.76,137.75,0.68]
[1764507764669,1e-08,137.76,137.75,7.93952813]
[1764507765169,1e-08,137.76,137.75,90.3905537]
[1764507765369,1e-08,137.76,137.75,99.34266019]
[1764507765573,1e-08,137.76,137.75,106.55552167]
[1764507765875,1e-08,137.76,137.75,90.24665767]
[1764507768886,1e-08,137.76,137.75,101.16356821]
[1764507770361,0.1,137.8,137.77,41.71352393]
[1764507770557,0.1,137.8,137.77,107.71352392]
[1764507770866,0.82,137.8,137.78,0.68]
[1764507772687,0.1,137.8,137.79,7.25742071]
[1764507774679,0.1,137.8,137.79,70.7374207]
[1764507774887,0.1,137.8,137.79,73.9374207]
[1764507775384,0.82,137.8,137.79,7.25742071]
[1764507776793,0.1,137.8,137.79,7.25742071]
[1764507777285,0.1,137.8,137.79,7.91742071]
[1764507777471,0.1,137.8,137.79,11.11742071]
[1764507779395,0.1,137.8,137.79,73.9174207]
[1764507783097,0.1,137.8,137.79,72.9174207]
[1764507784903,0.1,137.8,137.79,72.2574207]
[1764507785397,0.1,137.8,137.79,72.9174207]
[1764507786696,0.75,137.8,137.79,72.2574207]
[1764507787404,0.75,137.8,137.79,69.0574207]
[1764507788203,0.75,137.8,137.78,7.25794745]
[1764507796310,0.1,137.8,137.79,3.86]
[1764507798312,0.1,137.8,137.79,27.42628471]
[1764507798612,1e-08,137.8,137.79,99.32055276]
[1764507799608,1e-08,137.8,137.79,99.32055276]
[1764507801707,1e-08,137.8,137.79,121.14055276]
[1764507801905,1e-08,137.8,137.79,103.49489606]
[1764507803012,3.5243433,137.84,137.83,16.308864]
[1764507803220,3.5243433,137.84,137.83,82.30886399]
[1764507803403,3.5243433,137.84,137.83,82.97886399]
[1764507804123,3.5243433,137.84,137.83,90.2341785]
[1764507806624,3.5243433,137.84,137.83,89.5641785]
[1764507807521,3.5243433,137.84,137.83,90.2341785]
[1764507812502,3.5243433,137.84,137.83,90.37634007]
[1764507813401,4.2043433,137.84,137.83,89.5641785]
[1764507813809,3.5243433,137.84,137.83,89.5641785]
[1764507814226,4.2043433,137.84,137.83,89.5641785]
[1764507816602,4.2043433,137.84,137.83,26.76417851]
[1764507816926,4.2043433,137.84,137.82,7.25579366]
[1764507817128,0.68,137.83,137.82,7.25579366]
[1764507818127,3.5243433,137.84,137.82,7.25579366]
[1764507818300,4.2043433,137.84,137.82,7.25579366]
[1764507820230,3.5243433,137.84,137.82,7.92579366]
[1764507820922,3.5243433,137.84,137.82,70.72579365]
[1764507823022,3.5243433,137.84,137.82,70.05579365]
[1764507823347,3.5243433,137.84,137.83,0.67]
[1764507824724,3.5243433,137.84,137.83,4.15432314]
[1764507825227,0.1,137.85,137.84,23.56365216]
[1764507825521,0.1,137.85,137.84,24.23365216]
[1764507825726,0.1,137.85,137.84,87.03365215]
[1764507826312,0.1,137.85,137.84,86.36365215]
[1764507827624,0.1,137.85,137.84,87.03365215]
[1764507828232,1e-08,137.85,137.84,87.31797529]
[1764507828419,1e-08,137.85,137.84,33.32792022]
[1764507828613,1e-08,137.85,137.84,36.23310233]
[1764507829321,0.1,137.88,137.84,36.23310233]
[1764507829322,0.1,137.88,137.87,16.59318714]
[1764507829627,0.1,137.88,137.87,20.46318714]
[1764507830208,1e-08,137.88,137.87,29.27313206]
[1764507830408,1e-08,137.88,137.87,20.2174776]
[1764507831505,1e-08,137.88,137.87,27.71639668]
[1764507831714,1e-08,137.88,137.87,11.40753268]
[1764507832516,1e-08,137.88,137.87,27.71639668]
[1764507832814,1e-08,137.88,137.87,11.40753268]
[1764507833936,1e-08,137.88,137.87,20.2174776]
[1764507835238,1e-08,137.88,137.87,11.40753268]
[1764507835435,1e-08,137.88,137.87,10.73753268]
[1764507835633,1e-08,137.88,137.87,73.53753267]
[1764507835838,1e-08,137.88,137.87,74.20753267]
[1764507838846,1e-08,137.88,137.87,73.25320953]
[1764507841725,1e-08,137.88,137.87,73.92320953]
[1764507843343,0.70000001,137.88,137.87,70.05320953]
[1764507843538,0.70000001,137.88,137.87,7.25320954]